bitfinex/quotes_ETHUSD_20241116
["timestamp","ask_amount","ask_price","bid_price","bid_amount"]
[1731737171632,8.76e-06,3128.5,3128.4,11.08141982]
[1731737171853,1.6794,3130.0,3128.7,6.99911]
[1731737172054,1.6794,3130.0,3128.7,10.10479782]
[1731737172209,1.6794,3130.0,3128.7,10.6340106]
[1731737172411,1.6794,3130.0,3128.7,11.4369106]
[1731737174016,13.875,3128.8,3128.7,11.4369106]
[1731737174739,13.875,3128.8,3128.7,11.5711822]
[1731737175547,1.11,3130.0,3129.0,0.01]
[1731737175754,2.029347,3129.3,3129.2,10.10428782]
[1731737175909,2.029347,3129.3,3129.2,11.44168897]
[1731737176454,2.029347,3129.3,3129.2,11.45168897]
[1731737176609,0.884847,3129.3,3129.2,11.46168897]
[1731737177226,0.884847,3129.3,3129.2,12.01168897]
[1731737178144,1.164847,3129.3,3129.2,12.01168897]
[1731737178356,1.11,3130.0,3129.5,4.02539]
[1731737178534,1.11,3130.0,3129.5,8.047481]
[1731737178735,1.11,3130.0,3129.5,11.15316882]
[1731737180009,0.5694,3129.8,3129.0,0.82]
[1731737180208,0.5694,3129.8,3129.3,3.19559]
[1731737180209,1.11,3129.6,3129.3,3.19559]
[1731737180448,1.11,3129.6,3129.2,3.1957]
[1731737180449,0.07049015,3129.5,3129.2,3.1957]
[1731737180649,0.07049015,3129.5,3129.0,3.19586]
[1731737180850,0.07049015,3129.5,3129.0,3.1959]
[1731737181058,0.07049015,3129.5,3129.2,3.19569]
[1731737181239,1.11,3129.6,3129.2,3.19569]
[1731737181416,1.11,3129.6,3129.0,3.1959]
[1731737181620,0.07051249,3129.5,3129.1,3.19577]
[1731737182156,0.07051249,3129.5,3129.1,3.0]
[1731737182325,0.62551249,3129.5,3129.1,3.0]
[1731737182850,0.62551249,3129.5,3129.2,3.19569]
[1731737183023,0.62551249,3129.5,3129.3,3.0]
[1731737184334,1.18051249,3129.5,3129.3,3.0]
[1731737185143,1.18051249,3129.5,3129.1,3.0]
[1731737185461,1.18051249,3129.5,3129.2,3.0]
[1731737186463,1.73551249,3129.5,3129.2,3.0]
[1731737188549,2.29051249,3129.5,3129.2,3.0]
[1731737190790,2.84551249,3129.5,3129.2,3.0]
[1731737192278,0.5694,3129.4,3128.8,3.0]
[1731737192482,0.07036816,3129.3,3128.8,6.19611]
[1731737192647,0.06799762,3129.2,3128.8,6.19611]
[1731737192847,0.555,3129.3,3128.8,6.19611]
[1731737193043,0.067697,3129.2,3128.8,6.19611]
[1731737193364,0.555,3129.3,3128.8,6.19611]
[1731737193571,0.06767206,3129.1,3128.7,3.0]
[1731737193781,0.067697,3129.2,3128.7,6.1962]
[1731737193956,0.06764712,3129.0,3128.7,7.473702]
[1731737194155,0.0676609,3129.1,3128.7,7.473702]
[1731737194377,0.06761101,3128.9,3128.7,7.473702]
[1731737194582,3.75061,3129.3,3128.7,7.473702]
[1731737194781,0.06533237,3128.8,3128.7,7.473702]
[1731737195025,4.30561,3129.3,3128.7,7.473702]
[1731737195198,0.06533237,3128.8,3128.7,7.473702]
[1731737195508,0.06531917,3128.8,3128.7,7.473702]
[1731737195714,4.30561,3129.3,3128.7,7.473702]
[1731737195917,0.06531917,3128.8,3128.7,7.473702]
[1731737196223,4.30561,3129.3,3128.7,7.473702]
[1731737196705,3.26118894,3129.2,3128.7,1.277502]
[1731737196911,3.7652,3129.1,3128.2,3.19671]
[1731737197108,3.19601,3128.9,3128.2,3.19671]
[1731737197405,3.8986707,3128.9,3128.2,4.474392]
[1731737197615,0.0653222,3128.8,3128.2,4.474392]
[1731737197968,0.5694,3128.7,3128.3,3.0]
[1731737198397,0.06527231,3128.6,3128.1,4.277744]
[1731737198813,3.19643,3128.5,3127.9,6.19701]
[1731737198982,3.19643,3128.5,3127.9,7.474814]
[1731737199315,0.06516857,3128.4,3127.9,4.474814]
[1731737199615,0.06516857,3128.4,3127.9,1.277804]
[1731737199833,3.76606,3128.3,3127.7,0.3334868]
[1731737199988,3.19686,3128.1,3127.7,0.3334868]
[1731737200175,0.5694,3128.0,3127.7,0.3334868]
[1731737200374,0.63443622,3128.0,3127.7,0.3334868]
[1731737201206,1.18943622,3128.0,3127.7,0.3334868]
[1731737202109,1.1244,3128.0,3127.6,3.0]
[1731737202430,0.06481203,3127.9,3127.6,3.0]
[1731737203221,0.06481203,3127.9,3127.6,6.19726]
[1731737203519,0.61981203,3127.9,3127.7,3.19722]
[1731737203875,0.61981203,3127.9,3127.8,9.30281782]
[1731737204125,0.29365004,3127.9,3127.8,9.30281782]
[1731737204421,0.29365004,3127.9,3127.8,10.11531782]
[1731737205408,0.84865004,3127.9,3127.8,10.11531782]
[1731737205774,0.555,3128.0,3127.9,6.19703]
[1731737206022,0.555,3128.5,3128.4,3.19652]
[1731737206182,0.555,3128.5,3128.4,6.19652]
[1731737207234,0.555,3129.2,3128.4,10.17863105]
[1731737207442,0.555,3129.2,3129.1,3.1958]
[1731737207718,1.11,3129.2,3129.1,3.1958]
[1731737208626,1.11,3129.2,3129.0,3.0]
[1731737209497,1.11,3129.2,3128.7,3.19618]
[1731737209498,0.5694,3129.1,3128.8,3.0]
[1731737211315,3.19608,3128.9,3128.0,3.1969]
[1731737211499,0.5694,3128.8,3128.0,3.1969]
[1731737211694,3.19624,3128.7,3128.1,3.19682]
[1731737211894,3.25488218,3128.7,3128.1,3.19682]
[1731737212651,3.76582,3128.5,3127.8,3.19706]
[1731737212830,3.76582,3128.5,3127.9,3.197]
[1731737213007,0.05856733,3128.4,3127.9,3.197]
[1731737213213,0.05856733,3128.4,3128.0,3.19692]
[1731737213413,0.05856733,3128.4,3128.1,3.19679]
[1731737213929,0.61356733,3128.4,3128.1,3.19679]
[1731737214112,3.1967,3128.3,3127.6,3.19729]
[1731737214312,3.76619,3128.2,3127.6,3.19729]
[1731737214553,3.82463069,3128.2,3127.6,3.19729]
[1731737214711,0.62784069,3128.2,3127.2,2.066923]
[1731737214913,0.62784069,3128.2,3127.6,3.19726]
[1731737215410,0.55,3128.1,3127.2,3.98662]
[1731737215627,3.19703,3127.9,3127.3,3.19764]
[1731737215854,3.19703,3127.9,3127.4,3.0]
[1731737216058,0.05836542,3127.8,3127.2,3.19766]
[1731737216366,0.5694,3128.0,3127.3,3.19757]
[1731737216567,0.05828623,3127.7,3127.3,3.19757]
[1731737216853,1.056529,3128.0,3127.3,3.19757]
[1731737217058,0.05826127,3127.6,3127.3,3.19757]
[1731737217217,4.253539,3128.0,3127.4,3.0]
[1731737217421,0.0582189,3127.5,3127.4,3.0]
[1731737218063,0.555,3127.5,3127.4,3.0]
[1731737218220,0.6132189,3127.5,3127.4,3.0]
[1731737218418,0.5968659,3127.5,3127.4,6.19754]
[1731737218936,0.538647,3127.5,3127.4,6.19754]
[1731737219137,0.5968659,3127.5,3127.4,6.19754]
[1731737219548,0.5968659,3127.5,3127.4,3.0]
[1731737219752,1.1662659,3127.5,3127.2,6.53122083]
[1731737219950,1.663047,3127.5,3127.2,6.53122083]
[1731737220119,0.05819393,3127.4,3127.2,6.53122083]
[1731737221973,0.61319393,3127.4,3127.2,6.53122083]
[1731737222520,0.61319393,3127.4,3127.2,3.33354083]
[1731737223338,0.61319393,3127.4,3127.2,0.33354083]
[1731737223538,0.84081802,3127.4,3127.2,0.33354083]
[1731737223922,0.84081802,3127.4,3127.0,3.0]
[1731737224125,4.36574393,3127.4,3126.8,3.0]
[1731737224487,4.36574393,3127.4,3126.9,0.3335465]
[1731737224960,1.16819393,3127.4,3126.9,3.5315965]
[1731737225733,0.5694,3127.3,3126.9,0.3335465]
[1731737225923,0.62557982,3127.3,3126.9,0.3335465]
[1731737226164,1.2282475,3127.3,3126.9,0.3335465]
[1731737226464,0.5694,3127.2,3126.9,0.3335465]
[1731737226649,4.31735,3127.0,3126.9,0.3335465]
[1731737227021,4.37333305,3127.0,3126.9,0.3335465]
[1731737228334,3.82333305,3127.0,3126.9,0.3335465]
[1731737228552,4.37833305,3127.0,3126.9,0.3335465]
[1731737228728,5.13694936,3127.0,3126.9,0.3335465]
[1731737229161,5.13694936,3127.0,3126.4,0.50000337]
[1731737229366,3.19827,3126.7,3126.4,0.50000337]
[1731737229771,0.05580529,3126.6,3126.4,0.50000337]
[1731737230729,0.61080529,3126.6,3126.4,0.50000337]
[1731737231925,0.61080529,3126.6,3126.5,6.19846]
[1731737232146,0.555,3126.6,3126.5,9.36811774]
[1731737232340,0.555,3127.0,3126.9,6.97085]
[1731737232562,0.555,3127.0,3126.9,10.07653782]
[1731737232754,1.11,3127.0,3126.9,10.07653782]
[1731737232954,1.11,3127.0,3126.9,11.4040086]
[1731737234775,1.665,3127.0,3126.9,11.4040086]
[1731737236365,1.665,3127.0,3126.9,8.29832078]
[1731737236850,2.22,3127.0,3126.9,8.29832078]
[1731737237985,2.27417578,3127.0,3126.9,8.29832078]
[1731737239089,2.82917578,3127.0,3126.9,7.52552078]
[1731737241279,3.38417578,3127.0,3126.9,7.52552078]
[1731737243346,3.93917578,3127.0,3126.9,7.52552078]
[1731737245161,3.93917578,3127.0,3126.9,11.4040086]
[1731737245461,4.49417578,3127.0,3126.9,8.29832078]
[1731737247596,5.04917578,3127.0,3126.9,8.29832078]
[1731737248297,5.04917578,3127.0,3126.9,11.4040086]
[1731737248298,3.70943284,3127.0,3126.9,11.4040086]
[1731737248452,3.65525706,3127.0,3126.9,11.4040086]
[1731737249259,3.65525706,3127.0,3126.9,11.53991558]
[1731737249701,4.26262334,3127.0,3126.9,11.53991558]
[1731737250965,4.26262334,3127.0,3126.9,11.85921558]
[1731737251165,3.77052334,3127.0,3126.9,11.85921558]
[1731737251376,3.71815706,3127.0,3126.9,11.85921558]
[1731737251574,3.77053877,3127.0,3126.9,12.09785983]
[1731737251902,4.32553877,3127.0,3126.9,12.09785983]
[1731737253309,0.05065062,3127.0,3126.9,12.09785983]
[1731737253599,8.77e-06,3127.0,3126.9,12.09785983]
[1731737253789,0.55500877,3127.0,3126.9,12.09785983]
[1731737255900,0.73830038,3127.5,3127.0,3.01]
[1731737256207,0.73830038,3127.5,3127.4,10.08722782]
[1731737256208,0.39689875,3127.5,3127.4,10.08722782]
[1731737256374,0.15810125,3127.5,3127.4,10.32587207]
[1731737256573,0.555,3128.1,3128.0,3.19693]
[1731737256877,0.555,3128.1,3128.0,6.43557425]
[1731737257077,0.555,3128.1,3128.0,6.19693]
[1731737257286,0.555,3128.1,3128.0,7.219414]
[1731737257699,0.555,3128.1,3128.0,6.435414]
[1731737258237,1.11,3128.1,3128.0,6.435414]
[1731737260418,1.665,3128.1,3128.0,7.40505281]
[1731737260912,1.665,3128.1,3128.0,8.18905281]
[1731737261718,1.665,3128.1,3128.0,7.40505281]
[1731737261871,1.665,3128.1,3128.0,6.435414]
[1731737262533,2.22,3128.1,3128.0,6.435414]
[1731737263939,2.22,3128.1,3128.0,6.19693]
[1731737264304,2.22,3128.1,3128.0,6.43534183]
[1731737264526,2.775,3128.1,3128.0,6.67373791]
[1731737264698,2.775,3128.1,3128.0,8.04978448]
[1731737265103,2.775,3128.1,3128.0,8.11371554]
[1731737265300,2.775,3128.1,3128.0,8.04978448]
[1731737265971,2.775,3128.1,3128.0,8.83378448]
[1731737266098,0.555,3128.9,3128.8,6.19611]
[1731737266316,0.555,3128.9,3128.8,6.43450608]
[1731737266317,0.60635801,3128.9,3128.8,6.43450608]
[1731737266638,1.16135801,3128.9,3128.8,6.43450608]
[1731737267940,1.16135801,3128.9,3128.8,6.43410959]
[1731737268600,1.71635801,3128.9,3128.8,6.43410959]
[1731737270840,2.27135801,3128.9,3128.8,6.43410959]
[1731737271177,2.84075801,3128.9,3128.8,6.43398565]
[1731737271346,3.06789381,3128.9,3128.8,6.43398565]
[1731737272866,3.62289381,3128.9,3128.8,6.43398565]
[1731737274370,3.62289381,3128.9,3128.8,6.19611]
[1731737274570,3.62289381,3128.9,3128.8,6.43416816]
[1731737274986,4.17789381,3128.9,3128.8,6.43416816]
[1731737276003,4.17789381,3128.9,3128.8,0.23805816]
[1731737276148,3.60849381,3128.9,3128.2,3.1967]
[1731737276481,0.5694,3128.7,3128.3,3.19662]
[1731737276835,0.5694,3128.5,3128.2,3.19664]
[1731737277059,0.5694,3128.5,3128.3,3.19653]
[1731737277275,0.05125487,3128.4,3128.3,3.19653]
[1731737277657,0.05125487,3128.4,3128.3,6.19653]
[1731737279075,1.1244,3128.7,3128.6,3.19631]
[1731737279439,0.555,3128.7,3128.6,6.19631]
[1731737279645,0.60627828,3128.7,3128.6,7.44615478]
[1731737279846,0.60627828,3128.7,3128.6,6.19631]
[1731737281287,1.16127828,3128.7,3128.6,6.19631]
[1731737283465,1.71627828,3128.7,3128.6,6.19631]
[1731737285472,2.27127828,3128.7,3128.6,6.19631]
[1731737287603,2.82627828,3128.7,3128.6,6.19631]
[1731737289607,3.38127828,3128.7,3128.6,6.19631]
[1731737291631,4.67874611,3128.7,3128.5,3.0]
[1731737291834,5.23374611,3128.7,3128.5,3.0]
[1731737292423,0.55,3128.6,3128.5,3.0]
[1731737292661,0.55,3128.6,3128.4,3.0]
[1731737292662,0.60127596,3128.6,3128.4,3.0]
[1731737293926,1.15627596,3128.6,3128.4,3.0]
[1731737295239,0.5694,3128.5,3128.1,3.19681]
[1731737295450,0.62062426,3128.5,3128.2,3.0]
[1731737295649,3.19668,3128.3,3128.0,0.33342927]
[1731737295808,1.1194,3128.2,3128.0,0.33342927]
[1731737296005,1.17053911,3128.2,3128.0,3.53034927]
[1731737296202,0.05113911,3128.2,3128.1,3.10568782]
[1731737296404,0.05113911,3128.2,3128.1,7.12804272]
[1731737296648,0.05113911,3128.2,3128.1,7.06410782]
[1731737297035,0.05113911,3128.2,3128.1,10.06410782]
[1731737298115,0.555,3128.3,3128.2,6.19672]
[1731737298304,0.555,3128.3,3128.2,7.9111412]
[1731737298501,0.60444867,3128.3,3128.2,7.9111412]
[1731737300450,1.15944867,3128.3,3128.2,7.9111412]
[1731737302449,1.71444867,3128.3,3128.2,7.9111412]
[1731737304412,2.26944867,3128.3,3128.2,7.9111412]
[1731737306513,2.82444867,3128.3,3128.2,7.9111412]
[1731737307169,2.82444867,3128.3,3128.2,6.19672]
[1731737308347,2.82444867,3128.3,3128.2,3.0]
[1731737308546,0.5694,3128.2,3128.1,3.19682]
[1731737308853,0.61886305,3128.2,3128.1,3.19682]
[1731737309755,0.61886305,3128.2,3128.0,0.33342927]
[1731737310052,0.61886305,3128.2,3128.1,3.19682]
[1731737310258,1.16886305,3128.2,3128.1,3.19682]
[1731737310959,1.72386305,3128.2,3128.1,3.19682]
[1731737311522,1.72386305,3128.2,3128.1,6.19682]
[1731737311931,0.60446305,3128.2,3128.1,6.19682]
[1731737312733,0.60446305,3128.2,3128.1,7.94484593]
[1731737312931,1.15946305,3128.2,3128.1,7.94484593]
[1731737313860,1.15946305,3128.2,3128.1,6.19682]
[1731737314966,1.71446305,3128.2,3128.1,6.19682]
[1731737317148,2.26946305,3128.2,3128.1,6.19682]
[1731737318458,2.26946305,3128.2,3128.1,6.96282]
[1731737318839,2.26946305,3128.2,3128.1,6.19682]
[1731737319159,2.82446305,3128.2,3128.1,6.19682]
[1731737320684,3.39386305,3128.2,3128.1,6.19682]
[1731737320977,2.82446305,3128.2,3128.1,6.19682]
[1731737321287,3.37946305,3128.2,3128.1,6.19682]
[1731737322195,3.37946305,3128.2,3128.1,6.96282]
[1731737322404,3.37946305,3128.2,3128.1,8.32910132]
[1731737323588,3.93446305,3128.2,3128.1,8.32910132]
[1731737323973,3.93446305,3128.2,3128.1,8.33910132]
[1731737325455,4.48946305,3128.2,3128.1,8.33910132]
[1731737326049,4.48946305,3128.2,3128.1,8.32910132]
[1731737326867,4.48946305,3128.2,3128.1,8.4644644]
[1731737327473,5.04446305,3128.2,3128.1,8.4644644]
[1731737327669,5.04446305,3128.2,3128.1,9.57134637]
[1731737327994,5.04446305,3128.2,3128.1,8.4644644]
[1731737329656,5.59946305,3128.2,3128.1,8.4644644]
[1731737331264,5.59946305,3128.2,3128.1,7.09818308]
[1731737331704,6.15446305,3128.2,3128.1,7.09818308]
[1731737331875,6.15446305,3128.2,3128.1,6.19682]
[1731737333877,6.70946305,3128.2,3128.1,6.19682]
[1731737336398,7.26446305,3128.2,3128.1,6.4358901]
[1731737338480,7.26446305,3128.2,3128.1,6.43588294]
[1731737338709,7.81946305,3128.2,3128.1,6.43588294]
[1731737340514,7.81946305,3128.2,3128.1,7.07327027]
[1731737340682,8.37446305,3128.2,3128.1,7.07327027]
[1731737342879,8.92946305,3128.2,3128.1,8.39615499]
[1731737344929,9.48446305,3128.2,3128.1,8.39615499]
[1731737346252,9.48446305,3128.2,3128.1,9.68381558]
[1731737347020,10.03946305,3128.2,3128.1,9.44475264]
[1731737347222,10.03946305,3128.2,3128.1,9.68401161]
[1731737347605,10.03946305,3128.2,3128.1,10.79115689]
[1731737347809,10.03946305,3128.2,3128.1,9.68401161]
[1731737348039,10.03946305,3128.2,3128.1,8.39635102]
[1731737348415,10.03946305,3128.2,3128.1,9.50348557]
[1731737348842,10.03946305,3128.2,3128.1,8.39635102]
[1731737349229,10.59446305,3128.2,3128.1,8.39635102]
[1731737349427,10.59446305,3128.2,3128.1,7.0734663]
[1731737349760,12.55630936,3128.2,3128.1,7.0734663]
[1731737350608,10.59446305,3128.2,3128.1,7.0734663]
[1731737351356,11.14946305,3128.2,3128.1,7.0734663]
[1731737352929,11.14946305,3128.2,3128.1,8.39635102]
[1731737353249,11.70446305,3128.2,3128.1,8.39635102]
[1731737353409,11.70446305,3128.2,3128.1,9.82274769]
[1731737353623,11.70446305,3128.2,3128.1,10.5809888]
[1731737353809,11.70446305,3128.2,3128.1,11.68811492]
[1731737354611,11.70446305,3128.2,3128.1,10.5809888]
[1731737354853,11.70446305,3128.2,3128.1,11.6881046]
[1731737355258,12.25946305,3128.2,3128.1,11.6881046]
[1731737355862,12.25946305,3128.2,3128.1,11.68811714]
[1731737356069,12.25946305,3128.2,3128.1,11.68811797]
[1731737356362,12.25946305,3128.2,3128.1,13.349177]
[1731737356532,12.25946305,3128.2,3128.1,11.68811797]
[1731737357313,12.81446305,3128.2,3128.1,13.34947688]
[1731737357713,12.81446305,3128.2,3128.1,13.48590025]
[1731737357930,12.81446305,3128.2,3128.1,11.82453308]
[1731737358112,12.81446305,3128.2,3128.1,13.48594331]
[1731737358425,12.81446305,3128.2,3128.1,13.48600108]
[1731737358635,12.81446305,3128.2,3128.1,13.48594126]
[1731737359424,13.36946305,3128.2,3128.1,13.48594126]
[1731737360821,13.36946305,3128.2,3128.1,11.82452074]
[1731737361018,13.36946305,3128.2,3128.1,11.62052141]
[1731737361330,13.36946305,3128.2,3128.1,9.95908296]
[1731737361657,13.92446305,3128.2,3128.1,9.71983122]
[1731737362357,13.92446305,3128.2,3128.1,11.62075146]
[1731737362719,13.92446305,3128.2,3128.1,11.48432809]
[1731737362952,13.92446305,3128.2,3128.1,9.82333339]
[1731737363152,13.92446305,3128.2,3128.1,8.71554663]
[1731737363420,13.92446305,3128.2,3128.1,9.8233964]
[1731737363693,14.47946305,3128.2,3128.1,9.8233964]
[1731737363961,14.47946305,3128.2,3128.1,11.48511831]
[1731737364155,14.47946305,3128.2,3128.1,11.4851196]
[1731737364367,14.47946305,3128.2,3128.1,9.82339252]
[1731737364661,14.47946305,3128.2,3128.1,8.39634275]
[1731737365419,14.47946305,3128.2,3128.1,9.50424713]
[1731737365812,15.03446305,3128.2,3128.1,9.50424713]
[1731737366471,15.03446305,3128.2,3128.1,9.50426209]
[1731737366637,15.03446305,3128.2,3128.1,8.39634275]
[1731737367623,15.03446305,3128.2,3128.1,8.15709205]
[1731737367937,15.03446305,3128.2,3128.1,8.39636761]
[1731737368136,15.58946305,3128.2,3128.1,8.15709205]
[1731737368338,15.58946305,3128.2,3128.1,8.39636364]
[1731737370254,16.14446305,3128.2,3128.1,8.39636364]
[1731737371068,16.14446305,3128.2,3128.1,8.15709205]
[1731737371426,16.14446305,3128.2,3128.1,8.39633755]
[1731737372354,16.69946305,3128.2,3128.1,8.39633755]
[1731737373627,18.70240935,3128.2,3128.1,3.2392455]
[1731737373860,19.27180935,3128.2,3128.1,0.2392455]
[1731737374068,19.27180935,3128.2,3128.0,3.33342927]
[1731737374390,19.27180935,3128.2,3128.1,0.23926103]
[1731737374661,19.82680935,3128.2,3128.1,0.23926103]
[1731737376631,20.38180935,3128.2,3128.1,0.23926103]
[1731737378177,20.38180935,3128.2,3128.0,1.65631399]
[1731737378480,20.38180935,3128.2,3128.1,0.23905729]
[1731737378762,20.93680935,3128.2,3128.1,0.23905729]
[1731737380687,21.49180935,3128.2,3128.1,0.23905729]
[1731737381821,21.49180935,3128.2,3128.0,0.33342927]
[1731737381971,21.49180935,3128.2,3128.1,0.23894606]
[1731737382693,22.04680935,3128.2,3128.1,0.23894606]
[1731737383435,22.04680935,3128.2,3128.0,0.33342927]
[1731737385445,22.60180935,3128.2,3128.0,0.33342927]
[1731737386598,0.5694,3128.1,3128.0,0.33342927]
[1731737386935,3.5283475,3128.1,3128.0,0.33342927]
[1731737387593,4.0833475,3128.1,3128.0,0.33342927]
[1731737389207,4.0833475,3128.1,3127.8,1.95158974]
[1731737389434,4.0833475,3128.1,3127.9,0.3334146]
[1731737389938,4.6383475,3128.1,3127.9,0.3334146]
[1731737390134,2.14650846,3128.0,3127.9,0.3334146]
[1731737390345,2.76038747,3128.0,3127.9,0.3334146]
[1731737390494,5.96731747,3128.0,3127.9,0.3334146]
[1731737390694,0.5694,3127.9,3127.4,3.84739236]
[1731737390924,0.61380828,3127.8,3127.4,0.64992236]
[1731737391112,1.21054003,3127.8,3127.4,3.84742236]
[1731737391308,1.21054003,3127.8,3127.5,3.19742]
[1731737391508,0.61380828,3127.8,3127.5,3.19742]
[1731737392133,1.16880828,3127.8,3127.5,3.19742]
[1731737394543,1.72380828,3127.8,3127.5,3.19742]
[1731737396617,2.27880828,3127.8,3127.5,3.19742]
[1731737398867,2.83380828,3127.8,3127.5,3.19742]
[1731737399253,2.83380828,3127.8,3127.3,7.03270391]
[1731737399768,2.83380828,3127.8,3127.4,3.19752]
[1731737400334,2.83380828,3127.8,3127.3,3.83513391]
[1731737400534,3.76664,3127.7,3127.1,3.69811102]
[1731737400848,0.61370945,3127.6,3127.1,3.69811102]
[1731737401049,0.61370945,3127.6,3127.2,3.19774]
[1731737402329,0.61370945,3127.6,3127.1,0.50030102]
[1731737402669,0.5694,3127.4,3127.0,6.19789]
[1731737403037,0.04359808,3127.3,3126.9,3.98583609]
[1731737403282,0.04359808,3127.3,3126.9,7.18387609]
[1731737403560,0.5694,3127.2,3126.9,0.3334441]
[1731737403777,3.7646342,3127.1,3126.9,0.3334441]
[1731737403979,3.7646342,3127.1,3126.2,3.98113]
[1731737403980,3.80818233,3127.1,3126.4,3.19847]
[1731737404973,0.61294813,3127.1,3126.7,3.19818]
[1731737405195,1.16794813,3127.1,3126.8,3.19815]
[1731737405788,0.59854813,3127.1,3126.8,3.19815]
[1731737405992,0.5694,3126.7,3126.5,3.8312055]
[1731737406353,0.04342325,3126.6,3126.5,3.8312055]
[1731737406757,0.5694,3126.5,3126.3,3.19864]
[1731737406979,0.5694,3126.5,3126.4,3.19856]
[1731737407493,1.1244,3126.5,3126.4,3.19856]
[1731737409502,1.6794,3126.5,3126.4,3.19856]
[1731737410768,1.7226723,3126.5,3126.4,3.19856]
[1731737411562,2.2776723,3126.5,3126.4,3.19856]
[1731737413708,2.8326723,3126.5,3126.4,3.19856]
[1731737415887,3.3876723,3126.5,3126.4,3.19856]
[1731737417312,2.8182723,3126.5,3126.4,5.16117472]
[1731737417515,2.8182723,3126.5,3126.4,8.96937472]
[1731737417818,2.775,3126.5,3126.4,8.96937472]
[1731737418025,3.33,3126.5,3126.4,8.96937472]
[1731737418386,3.37165482,3126.5,3126.4,8.96937472]
[1731737419413,3.37165482,3126.5,3126.4,9.10212966]
[1731737420143,3.92665482,3126.5,3126.4,9.10212966]
[1731737420995,3.92665482,3126.5,3126.4,9.42132966]
[1731737422083,3.92665482,3126.5,3126.4,9.28857472]
[1731737422311,4.48165482,3126.5,3126.4,7.96569]
[1731737422515,4.48165482,3126.5,3126.4,8.64884472]
[1731737422975,4.82e-06,3126.5,3126.4,8.64884472]
[1731737423183,0.555,3127.4,3127.3,3.19764]
[1731737423389,0.555,3127.4,3127.3,8.94848872]
[1731737423390,0.22543059,3127.4,3127.3,8.94848872]
[1731737424421,0.78043059,3127.4,3127.3,8.94848872]
[1731737424657,0.78043059,3127.4,3127.3,8.32872472]
[1731737425576,0.78043059,3127.4,3127.3,6.19764]
[1731737426667,1.33543059,3127.4,3127.3,6.19764]
[1731737428241,1.33543059,3127.4,3127.3,6.96374]
[1731737428891,1.89043059,3127.4,3127.3,6.96374]
[1731737429184,1.89043059,3127.4,3127.3,8.11217847]
[1731737430790,1.93100215,3127.4,3127.3,8.11217847]
[1731737431082,2.48600215,3127.4,3127.3,8.11217847]
[1731737431439,19.98,3128.2,3128.0,3.19693]
[1731737431644,19.98,3128.2,3128.1,7.91600772]
[1731737432368,19.98,3128.2,3128.1,8.72140772]
[1731737433160,20.535,3128.2,3128.1,8.72140772]
[1731737434123,11.57256226,3128.2,3128.1,8.72140772]
[1731737434825,5.17912226,3128.2,3128.1,10.50318595]
[1731737434964,3.58076226,3128.2,3128.1,10.50318595]
[1731737435174,4.13576226,3128.2,3128.1,10.50318595]
[1731737435375,3.70250085,3128.2,3128.1,11.05318595]
[1731737435604,2.10419085,3128.2,3128.1,11.05318595]
[1731737435775,8.5e-07,3128.3,3128.2,3.55]
[1731737436074,8.5e-07,3128.3,3128.2,9.04205197]
[1731737436274,8.5e-07,3128.3,3128.2,8.97813159]
[1731737437581,0.555,3128.6,3128.5,10.65648295]
[1731737437784,0.555,3128.6,3128.5,12.04278424]
[1731737439413,1.11,3128.6,3128.5,12.04278424]
[1731737439705,1.18152423,3128.6,3128.5,12.04278424]
[1731737440807,1.18152423,3128.6,3128.5,11.49278424]
[1731737441491,1.73652423,3128.6,3128.5,11.49278424]
[1731737441893,1.73652423,3128.6,3128.5,11.62558929]
[1731737442913,4.23e-06,3128.7,3128.6,7.00171]
[1731737443234,3.32920423,3128.9,3128.8,4.00151]
[1731737443389,3.32920423,3128.9,3128.8,10.10617295]
[1731737443592,3.88420423,3128.9,3128.8,10.10617295]
[1731737443795,3.88420423,3128.9,3128.8,11.64384064]
[1731737444017,3.69889423,3128.9,3128.8,11.64384064]
[1731737444721,3.69889423,3128.9,3128.8,11.8808447]
[1731737445110,0.84443827,3129.2,3129.1,4.0012]
[1731737445313,0.84443827,3129.2,3129.1,10.10586295]
[1731737445517,0.84443827,3129.2,3129.1,11.44243201]
[1731737445815,0.84443827,3129.2,3129.1,6.1958]
[1731737446014,1.39943827,3129.2,3129.1,6.43280406]
[1731737448302,2.775,3129.5,3129.3,0.55]
[1731737448502,1.11,3130.0,3129.3,0.55]
[1731737448503,0.78880827,3129.6,3129.5,7.30329]
[1731737448737,0.78880827,3129.6,3129.5,7.85329]
[1731737448929,1.11,3130.0,3129.9,6.19499]
[1731737449102,1.11,3130.0,3129.9,9.53665701]
[1731737449442,1.17273932,3130.0,3129.9,9.53665701]
[1731737449942,1.11,3130.0,3129.9,9.53665701]
[1731737450155,1.11,3130.0,3129.9,9.29965295]
[1731737450307,1.665,3130.0,3129.9,9.29965295]
[1731737450806,1.665,3130.0,3129.9,9.53678807]
[1731737451555,1.665,3130.0,3129.9,6.43212512]
[1731737452348,1.72782022,3130.0,3129.9,6.43212512]
[1731737452541,1.72782022,3130.0,3129.9,0.23713512]
[1731737452542,2.51254224,3130.0,3129.9,0.23713512]
[1731737454005,2.51254224,3130.0,3129.9,3.23713512]
[1731737454557,2.51254224,3130.0,3129.9,6.43212512]
[1731737454722,2.83782022,3130.0,3129.9,6.43212512]
[1731737456208,2.83782022,3130.0,3129.7,6.19514]
[1731737456438,3.40722022,3130.0,3129.9,0.23752619]
[1731737456621,3.40722022,3130.0,3129.8,0.23752619]
[1731737456841,0.66020402,3129.9,3129.5,3.19533]
[1731737457028,0.66020402,3129.9,3129.6,3.43280629]
[1731737457207,0.66020402,3129.9,3129.7,0.23755629]
[1731737457208,0.06061768,3129.8,3129.7,0.23755629]
[1731737457765,0.63001768,3129.8,3129.7,0.23755629]
[1731737458362,0.5694,3129.7,3129.1,3.19577]
[1731737458556,0.06057834,3129.6,3129.2,0.23783619]
[1731737458740,0.06057834,3129.6,3129.3,0.23783619]
[1731737458952,0.06057834,3129.6,3129.1,3.19577]
[1731737458953,1.04295529,3129.6,3129.4,0.23783619]
[1731737459175,1.04295529,3129.6,3129.5,0.23783619]
[1731737459579,1.04295529,3129.6,3129.2,3.0]
[1731737459791,0.61557834,3129.6,3129.2,3.0]
[1731737460545,0.61557834,3129.6,3129.0,3.0]
[1731737460890,0.61557834,3129.6,3129.0,6.19583]